bitfinex/quotes_BTCUSD_20230110
["timestamp","ask_amount","ask_price","bid_price","bid_amount"]
[1673347468562,5.03983586,17272.0,17271.0,0.00486099]
[1673347468838,6.77763431,17272.0,17271.0,0.00486099]
[1673347469565,6.15196053,17272.0,17271.0,0.00486099]
[1673347470515,4.41416208,17272.0,17271.0,0.00486099]
[1673347472489,4.97464528,17272.0,17271.0,0.00486099]
[1673347472732,6.71244373,17272.0,17271.0,0.00486099]
[1673347473240,6.15196053,17272.0,17271.0,0.00226195]
[1673347474022,4.41416208,17272.0,17271.0,0.00226195]
[1673347478736,4.41504006,17272.0,17271.0,0.00226195]
[1673347478987,4.12865268,17272.0,17271.0,0.00226195]
[1673347480781,3.82865268,17272.0,17271.0,0.00226195]
[1673347483299,4.41499507,17272.0,17271.0,0.00226195]
[1673347491836,4.85387017,17272.0,17271.0,0.00226195]
[1673347492049,6.59166862,17272.0,17271.0,0.00226195]
[1673347493268,6.59166862,17272.0,17271.0,0.00104391]
[1673347501531,0.90478498,17271.0,17267.0,0.70024521]
[1673347501779,0.60811047,17268.0,17267.0,0.70024521]
[1673347502281,1.76530203,17268.0,17267.0,0.70024521]
[1673347502801,1.93904788,17268.0,17267.0,0.70024521]
[1673347503564,1.94504788,17268.0,17267.0,0.79024521]
[1673347503816,1.94504788,17268.0,17267.0,0.09]
[1673347504583,1.77130245,17268.0,17267.0,0.09]
[1673347508100,1.94504161,17268.0,17267.0,0.09]
[1673347508356,1.59754991,17268.0,17267.0,0.09]
[1673347515460,1.33693072,17268.0,17267.0,0.09]
[1673347518752,1.33693072,17268.0,17267.0,0.2565]
[1673347518999,1.33693072,17268.0,17267.0,0.617484]
[1673347520265,1.33693072,17268.0,17267.0,0.2565]
[1673347520523,1.59754991,17268.0,17267.0,0.2565]
[1673347528238,1.77130245,17268.0,17267.0,0.2565]
[1673347528501,1.94499726,17268.0,17267.0,0.2565]
[1673347529012,1.77130245,17268.0,17267.0,0.2565]
[1673347529267,1.59750837,17268.0,17267.0,0.2565]
[1673347530290,1.77130245,17268.0,17267.0,0.2565]
[1673347533443,1.77130245,17268.0,17267.0,0.09]
[1673347533706,2.20560912,17268.0,17267.0,0.09]
[1673347534653,1.77124817,17268.0,17267.0,0.09]
[1673347534909,1.94504788,17268.0,17267.0,0.09]
[1673347536842,1.77124198,17268.0,17267.0,0.62654551]
[1673347537364,1.59745331,17268.0,17267.0,0.62654551]
[1673347537628,1.59745337,17268.0,17267.0,0.62654551]
[1673347537896,1.33689465,17268.0,17267.0,0.62654551]
[1673347543760,1.59745337,17268.0,17267.0,0.62654551]
[1673347545742,1.33689465,17268.0,17267.0,2.22369861]
[1673347546003,0.006,17268.0,17267.0,2.38799985]
[1673347546249,1.16464898,17268.0,17267.0,4.36066923]
[1673347546503,0.006,17268.0,17267.0,5.34437964]
[1673347547001,0.00588767,17268.0,17267.0,5.69090514]
[1673347547787,0.00588767,17268.0,17267.0,5.51764674]
[1673347548049,0.00588767,17268.0,17267.0,5.95080361]
[1673347548309,0.00588767,17268.0,17267.0,5.69090514]
[1673347548832,0.00588767,17268.0,17267.0,5.95080173]
[1673347549311,0.00588767,17268.0,17267.0,5.51764486]
[1673347551081,0.00588767,17268.0,17267.0,5.34428528]
[1673347553582,0.00588767,17268.0,17267.0,5.17768528]
[1673347554323,0.00588767,17268.0,17267.0,4.62713174]
[1673347555093,0.00588767,17268.0,17267.0,4.36723515]
[1673347556628,0.00588767,17268.0,17267.0,3.36723515]
[1673347556879,0.03037061,17268.0,17267.0,3.36723515]
[1673347560812,0.03037061,17268.0,17267.0,3.06723515]
[1673347561758,0.03037061,17268.0,17267.0,3.36723515]
[1673347564227,0.03037061,17268.0,17267.0,3.06723515]
[1673347564737,0.03037061,17268.0,17267.0,2.89406923]
[1673347565015,0.03037061,17268.0,17267.0,2.72596923]
[1673347566813,0.03037061,17268.0,17267.0,2.28709413]
[1673347579157,0.03037061,17268.0,17267.0,1.92611013]
[1673347600734,0.2040737,17268.0,17267.0,1.92611013]
[1673347601429,1.36274986,17268.0,17267.0,1.92611013]
[1673347601961,1.62330858,17268.0,17267.0,1.92611013]
[1673347603002,1.62330858,17268.0,17267.0,1.248278]
[1673347604295,1.62330858,17268.0,17267.0,0.669139]
[1673347613819,1.79709719,17268.0,17267.0,0.669139]
[1673347614039,1.79709719,17268.0,17267.0,0.09]
[1673347614771,1.97077935,17268.0,17267.0,0.09]
[1673347614994,1.79709719,17268.0,17267.0,0.09]
[1673347615218,1.97077896,17268.0,17267.0,0.09]
[1673347615691,1.79709719,17268.0,17267.0,0.09]
[1673347620789,1.62330271,17268.0,17267.0,0.09]
[1673347621838,1.36274399,17268.0,17267.0,0.09]
[1673347623359,1.36274399,17268.0,17267.0,0.669139]
[1673347623621,1.62330271,17268.0,17267.0,0.669139]
[1673347627850,1.36274399,17268.0,17267.0,0.669139]
[1673347629100,1.62330271,17268.0,17267.0,0.669139]
[1673347629841,2.20544283,17268.0,17267.0,0.669139]
[1673347630105,2.37923731,17268.0,17267.0,0.09]
[1673347630364,3.23378644,17268.0,17267.0,0.09]
[1673347630631,2.55304321,17268.0,17267.0,0.09]
[1673347631150,2.8135934,17268.0,17267.0,0.09]
[1673347631408,2.55304321,17268.0,17267.0,0.09]
[1673347631674,2.81359394,17268.0,17267.0,0.09]
[1673347632216,2.37922932,17268.0,17267.0,0.09]
[1673347643507,2.55304321,17268.0,17267.0,0.09]
[1673347643760,2.87234932,17268.0,17267.0,0.09]
[1673347644050,2.87234932,17268.0,17267.0,0.08989714]
[1673347646806,2.55304321,17268.0,17267.0,0.08989714]
[1673347647093,2.37924524,17268.0,17267.0,0.08989714]
[1673347650135,2.55294912,17268.0,17267.0,0.08989714]
[1673347650387,2.20545742,17268.0,17267.0,0.08989714]
[1673347650920,2.37924524,17268.0,17267.0,0.08989714]
[1673347652039,2.20545369,17268.0,17267.0,0.08989714]
[1673347652315,2.20545369,17268.0,17267.0,0.74171392]
[1673347653391,1.94488704,17268.0,17267.0,0.74171392]
[1673347653646,2.20545369,17268.0,17267.0,0.74171392]
[1673347654213,1.94488704,17268.0,17267.0,0.74171392]
[1673347658310,1.94488704,17268.0,17267.0,1.32085292]
[1673347660634,0.78621088,17268.0,17267.0,1.32085292]
[1673347663660,1.94487474,17268.0,17267.0,1.32085292]
[1673347663908,0.78621088,17268.0,17267.0,0.66903614]
[1673347664163,1.94487743,17268.0,17267.0,0.66903614]
[1673347666661,0.78621088,17268.0,17267.0,0.66903614]
[1673347667416,1.94487324,17268.0,17267.0,0.66903614]
[1673347669421,0.78621088,17268.0,17267.0,0.66903614]
[1673347672693,1.94486988,17268.0,17267.0,0.66903614]
[1673347672943,1.9448699,17268.0,17267.0,0.66903614]
[1673347673454,0.78621088,17268.0,17267.0,0.66903614]
[1673347675454,0.61251073,17268.0,17267.0,0.66903614]
[1673347679492,0.78621088,17268.0,17267.0,0.66903614]
[1673347679739,0.61251073,17268.0,17267.0,0.66903614]
[1673347680239,0.78621088,17268.0,17267.0,0.66903614]
[1673347681729,0.61251073,17268.0,17267.0,0.66903614]
[1673347683504,0.78621088,17268.0,17267.0,0.66903614]
[1673347684506,1.94486743,17268.0,17267.0,0.66903614]
[1673347686533,2.20543408,17268.0,17267.0,0.66903614]
[1673347691506,2.37922563,17268.0,17267.0,0.66903614]
[1673347692255,2.55296947,17268.0,17267.0,0.66903614]
[1673347692504,2.37922563,17268.0,17267.0,0.66903614]
[1673347698515,2.20544162,17268.0,17267.0,0.66903614]
[1673347698773,2.20544162,17268.0,17267.0,1.24817514]
[1673347699796,1.94487497,17268.0,17267.0,1.24817514]
[1673347700047,1.36273485,17268.0,17267.0,1.24817514]
[1673347700319,1.36273485,17268.0,17267.0,2.24816447]
[1673347700588,0.03037061,17268.0,17267.0,2.42133039]
[1673347702358,1.18899058,17268.0,17267.0,2.42133039]
[1673347702626,1.18899058,17268.0,17267.0,2.06034639]
[1673347704219,1.36269827,17268.0,17267.0,1.88718047]
[1673347708338,1.36269827,17268.0,17267.0,1.24817514]
[1673347710171,1.62326492,17268.0,17267.0,1.24817514]
[1673347710659,1.36269827,17268.0,17267.0,1.24817514]
[1673347710922,1.62326492,17268.0,17267.0,1.24817514]
[1673347716485,1.36269827,17268.0,17267.0,1.24817514]
[1673347725657,1.18899058,17268.0,17267.0,1.24817514]
[1673347725914,1.18899058,17268.0,17267.0,3.24481308]
[1673347726165,0.03030566,17268.0,17267.0,4.74035418]
[1673347726459,0.03030566,17268.0,17267.0,4.00719731]
[1673347726697,0.03030566,17268.0,17267.0,3.10220141]
[1673347726940,0.03030566,17268.0,17267.0,2.66332631]
[1673347727194,0.03030566,17268.0,17267.0,3.59468827]
[1673347727461,0.03030566,17268.0,17267.0,3.59459945]
[1673347727718,0.03030566,17268.0,17267.0,3.89459945]
[1673347729232,0.03030566,17268.0,17267.0,3.59459945]
[1673347729488,0.03030566,17268.0,17267.0,3.10220141]
[1673347729765,0.03030566,17268.0,17267.0,2.84220917]
[1673347733313,0.03030566,17268.0,17267.0,3.10220141]
[1673347734337,0.03030566,17268.0,17267.0,2.84220917]
[1673347735110,0.03030566,17268.0,17267.0,2.40333407]
[1673347735905,0.03030566,17268.0,17267.0,2.22998764]
[1673347736159,0.03030566,17268.0,17267.0,2.40333407]
[1673347743073,0.03030566,17268.0,17267.0,2.82504425]
[1673347743355,0.03030566,17268.0,17267.0,3.08503649]
[1673347743861,0.03030566,17268.0,17267.0,3.57461982]
[1673347744120,0.03030566,17268.0,17267.0,3.87461982]
[1673347744626,0.03030566,17268.0,17267.0,4.04779889]
[1673347745906,0.03030566,17268.0,17267.0,3.87448666]
[1673347749017,0.03030566,17268.0,17267.0,4.04108666]
[1673347751717,0.03030566,17268.0,17267.0,3.74108666]
[1673347754594,0.03030566,17268.0,17267.0,4.04108666]
[1673347755766,0.03030566,17268.0,17267.0,4.0410505]
[1673347756363,0.03030566,17268.0,17267.0,3.7410505]
[1673347756609,0.03030566,17268.0,17267.0,3.31937648]
[1673347758135,0.03030566,17268.0,17267.0,3.74106251]
[1673347761403,0.03030566,17268.0,17267.0,3.91437474]
[1673347761669,0.03030566,17268.0,17267.0,4.21437474]
[1673347761920,0.03030566,17268.0,17267.0,4.08766612]
[1673347762690,0.03030566,17268.0,17267.0,3.91437474]
[1673347762939,0.03030566,17268.0,17267.0,4.21437474]
[1673347763152,0.03030566,17268.0,17267.0,3.91437474]
[1673347763442,0.03030566,17268.0,17267.0,4.21437474]
[1673347763692,0.03030566,17268.0,17267.0,3.91437474]
[1673347763964,0.03030566,17268.0,17267.0,4.21437474]
[1673347764217,0.03030566,17268.0,17267.0,3.91437474]
[1673347764483,0.03030566,17268.0,17267.0,4.21437474]
[1673347765010,0.03030566,17268.0,17267.0,3.91437474]
[1673347765245,0.03030566,17268.0,17267.0,4.21437474]
[1673347765497,0.03030566,17268.0,17267.0,4.21429176]
[1673347766027,0.03030566,17268.0,17267.0,4.21430223]
[1673347766798,0.03030566,17268.0,17267.0,3.49268871]
[1673347767047,0.03030566,17268.0,17267.0,3.31952194]
[1673347767557,0.03030566,17268.0,17267.0,3.31952059]
[1673347767806,0.03030566,17268.0,17267.0,3.31951903]
[1673347768561,0.03030566,17268.0,17267.0,3.49268871]
[1673347769032,0.03030566,17268.0,17267.0,3.91438182]
[1673347769326,0.03030566,17268.0,17267.0,3.74778182]
[1673347770669,0.03030566,17268.0,17267.0,3.32608871]
[1673347770894,0.03030566,17268.0,17267.0,3.49943487]
[1673347771127,0.03030566,17268.0,17267.0,3.57450847]
[1673347771619,0.03030566,17268.0,17267.0,3.92103397]
[1673347771842,0.03030566,17268.0,17267.0,3.49943487]
[1673347772100,0.02413698,17268.0,17267.0,3.49943487]
[1673347772348,0.02413698,17268.0,17267.0,3.32608871]
[1673347772848,3.03943487,17270.0,17267.0,3.49942052]
[1673347773086,1.15856656,17269.0,17268.0,0.17333489]
[1673347773396,1.15856656,17269.0,17268.0,1.15821]
[1673347773611,1.15856656,17269.0,17268.0,1.33154489]
[1673347774134,1.15856656,17269.0,17268.0,1.15821]
[1673347774380,1.15856656,17269.0,17268.0,1.33154489]
[1673347775978,1.15956656,17269.0,17268.0,1.35154489]
[1673347781530,1.15956656,17269.0,17268.0,1.9167827]
[1673347781762,0.001,17269.0,17268.0,2.65903378]
[1673347781997,0.001,17269.0,17268.0,3.02001778]
[1673347785778,0.001,17269.0,17268.0,3.19320839]
[1673347786855,0.001,17269.0,17268.0,3.49320839]
[1673347788912,0.001,17269.0,17268.0,3.66637302]
[1673347789161,0.001,17269.0,17268.0,3.92630534]
[1673347789412,0.001,17269.0,17268.0,3.66637302]
[1673347793226,0.001,17269.0,17268.0,3.49306649]
[1673347795735,0.0009006,17269.0,17268.0,3.49306649]
[1673347801798,2.01913393,17270.0,17269.0,0.61141123]
[1673347802051,2.01913393,17270.0,17269.0,2.14275789]
[1673347802317,2.01913393,17270.0,17269.0,2.50374189]
[1673347802833,2.01913393,17270.0,17269.0,1.94275789]
[1673347803087,2.01913393,17270.0,17269.0,1.76955523]
[1673347803887,2.07013393,17270.0,17269.0,1.77355523]
[1673347804644,2.01913393,17270.0,17269.0,1.76955523]
[1673347804892,2.02513393,17270.0,17269.0,1.86355523]
[1673347805142,2.01913393,17270.0,17269.0,1.76955523]
[1673347805495,3.17762145,17270.0,17269.0,1.76955523]
[1673347805954,3.17762145,17270.0,17269.0,1.158144]
[1673347806209,3.22862145,17270.0,17269.0,1.162144]
[1673347806469,3.17762145,17270.0,17269.0,1.158144]
[1673347806789,3.18362145,17270.0,17269.0,1.252144]
[1673347817523,3.18362145,17270.0,17269.0,1.42534666]
[1673347818503,3.18362145,17270.0,17269.0,2.03101267]
[1673347818771,2.02513393,17270.0,17269.0,2.03101267]
[1673347819022,2.02513393,17270.0,17269.0,3.13281816]
[1673347819758,2.02513393,17270.0,17269.0,3.13271888]
[1673347822573,2.02513393,17270.0,17269.0,3.60604172]
[1673347823825,2.02513393,17270.0,17269.0,3.50119987]
[1673347829642,2.02513393,17270.0,17269.0,3.67443856]
[1673347829895,2.02513393,17270.0,17269.0,3.50115083]
[1673347830151,2.02513393,17270.0,17269.0,3.67443856]
[1673347835919,2.02513393,17270.0,17269.0,3.50099823]
[1673347836182,2.02513393,17270.0,17269.0,3.67443856]
[1673347837962,2.02513393,17270.0,17269.0,3.50097066]
[1673347838179,2.02513393,17270.0,17269.0,3.67443856]
[1673347846885,2.02505084,17270.0,17269.0,3.67443856]
[1673347847392,2.02505084,17270.0,17269.0,3.32791306]
[1673347847886,0.88488343,17270.0,17269.0,3.89014705]
[1673347848136,0.88488343,17270.0,17269.0,3.45705032]
[1673347848904,0.87888343,17270.0,17269.0,3.36305032]
[1673347849161,0.87888343,17270.0,17269.0,3.50205032]
[1673347849437,0.87888343,17270.0,17269.0,4.77160793]
[1673347849694,0.87888343,17270.0,17269.0,4.91060793]
[1673347849950,0.87888343,17270.0,17269.0,5.5045556]
[1673347850208,0.87888343,17270.0,17269.0,5.3045556]
[1673347851179,0.87888343,17270.0,17269.0,5.56254613]
[1673347853953,0.87888343,17270.0,17269.0,6.27002405]
[1673347854212,0.87888343,17270.0,17269.0,5.59932288]
[1673347854453,0.87888343,17270.0,17269.0,5.04955352]
[1673347857235,0.87888343,17270.0,17269.0,4.99156299]
[1673347857495,0.87888343,17270.0,17269.0,4.43499799]
[1673347858795,0.87888343,17270.0,17269.0,4.98578593]
[1673347859045,0.87888343,17270.0,17269.0,4.43499799]
[1673347859297,0.87888343,17270.0,17269.0,4.60309799]
[1673347860027,0.30668343,17270.0,17269.0,5.67988293]
[1673347860776,0.00939204,17270.0,17269.0,5.73787346]
[1673347861030,0.02282197,17270.0,17269.0,5.67988293]
[1673347862050,0.00939204,17270.0,17269.0,5.67988293]
[1673347866546,0.00939204,17270.0,17269.0,5.51198293]
[1673347867042,0.00939204,17270.0,17269.0,5.56997346]
[1673347867285,0.00939204,17270.0,17269.0,5.51198293]
[1673347868050,0.00118204,17270.0,17269.0,5.51198293]
[1673347871059,0.00118204,17270.0,17269.0,5.56997346]
[1673347871314,0.00010541,17270.0,17269.0,5.56997346]
[1673347873615,0.00010541,17270.0,17269.0,5.05018521]
[1673347874629,0.00010541,17270.0,17269.0,5.56883917]
[1673347874886,0.00010541,17270.0,17269.0,5.05018521]
[1673347876159,0.00010541,17270.0,17269.0,4.99219468]
[1673347877190,0.00010541,17270.0,17269.0,5.05018521]
[1673347877691,0.00010541,17270.0,17269.0,4.99219468]
[1673347878198,0.00010541,17270.0,17269.0,5.05018521]
[1673347879230,0.00010541,17270.0,17269.0,4.99219468]
[1673347881261,9.49e-06,17270.0,17269.0,4.99219468]
[1673347885558,9.49e-06,17270.0,17269.0,5.51131019]
[1673347886071,9.49e-06,17270.0,17269.0,4.99219468]
[1673347888067,1.45335134,17274.0,17271.0,5.051e-05]
[1673347888068,0.2,17273.0,17271.0,5.051e-05]
[1673347888344,1.0071242,17274.0,17272.0,1.76380294]
[1673347888588,0.5698242,17274.0,17273.0,0.360984]
[1673347888842,0.5698242,17274.0,17273.0,0.53409197]
[1673347889094,0.5698242,17274.0,17273.0,1.59063866]
[1673347889598,0.5698242,17274.0,17273.0,1.95162266]
[1673347889847,0.5698242,17274.0,17273.0,2.07562266]
[1673347890069,0.5698242,17274.0,17273.0,1.71463866]
[1673347890581,0.5698242,17274.0,17273.0,2.46260955]
[1673347890834,0.01218096,17274.0,17273.0,2.76260955]
[1673347891348,0.01218096,17274.0,17273.0,2.10162555]
[1673347891630,0.01218096,17274.0,17273.0,1.71463866]
[1673347892119,0.01218096,17274.0,17273.0,1.45498397]
[1673347892378,0.01218096,17274.0,17273.0,1.71463866]
[1673347892897,0.01218096,17274.0,17273.0,2.10164458]
[1673347893156,0.01218096,17274.0,17273.0,1.71463866]
[1673347893921,0.01218096,17274.0,17273.0,2.10097946]
[1673347898261,0.01218096,17274.0,17273.0,1.71463866]
[1673347899045,0.01218096,17274.0,17273.0,2.10102684]
[1673347899300,0.01218096,17274.0,17273.0,1.71463866]
[1673347899555,0.01218096,17274.0,17273.0,2.10104618]
[1673347903204,0.01218096,17274.0,17273.0,1.71463866]
[1673347903478,0.01218096,17274.0,17273.0,1.45498397]
[1673347903734,0.01218096,17274.0,17273.0,1.71463866]
[1673347903980,0.01218096,17274.0,17273.0,1.45498397]
[1673347904236,0.01218096,17274.0,17273.0,1.71463866]
[1673347905125,0.01218096,17274.0,17273.0,2.09910671]
[1673347905605,0.01218096,17274.0,17273.0,1.71463866]
[1673347905859,1.17035678,17274.0,17273.0,1.45498397]
[1673347906384,0.01218096,17274.0,17273.0,2.09910056]
[1673347907293,0.01218096,17274.0,17273.0,1.71463866]
[1673347909071,0.01218096,17274.0,17273.0,1.45498397]
[1673347909302,0.01218096,17274.0,17273.0,1.71463866]
[1673347909800,0.01218096,17274.0,17273.0,1.45498397]
[1673347910063,1.17035805,17274.0,17273.0,1.45498397]
[1673347912066,1.17025723,17274.0,17273.0,1.45498397]
[1673347915138,1.17025966,17274.0,17273.0,1.45498397]
[1673347915393,0.01208014,17274.0,17273.0,1.45498397]
[1673347915901,0.01208014,17274.0,17273.0,1.71463866]
[1673347916665,0.01208014,17274.0,17273.0,2.09742589]
[1673347917687,0.01208014,17274.0,17273.0,1.71463866]
[1673347918481,0.01208014,17274.0,17273.0,2.0974158]
[1673347918971,0.01208014,17274.0,17273.0,1.71463866]
[1673347919227,1.17025392,17274.0,17273.0,1.45498397]
[1673347919528,0.01208014,17274.0,17273.0,1.71463866]
[1673347920268,1.17025502,17274.0,17273.0,1.45498397]
[1673347922658,1.17025502,17274.0,17273.0,1.71463866]
[1673347922882,1.17025502,17274.0,17273.0,1.45498397]
[1673347923131,1.17025502,17274.0,17273.0,1.71463866]
[1673347923387,1.17025502,17274.0,17273.0,2.09690958]
[1673347924419,1.17025502,17274.0,17273.0,1.71463866]
[1673347924701,1.17025502,17274.0,17273.0,2.09753979]
[1673347925737,0.01208014,17274.0,17273.0,2.09753979]
[1673347926040,0.01208014,17274.0,17273.0,2.45852379]
[1673347926587,0.01208014,17274.0,17273.0,2.09753979]
[1673347927349,0.01208014,17274.0,17273.0,2.44374604]
[1673347927639,0.01208014,17274.0,17273.0,2.09753979]
[1673347928145,0.01208014,17274.0,17273.0,2.45852379]
[1673347928409,0.01208014,17274.0,17273.0,2.09753979]
[1673347928720,0.01208014,17274.0,17273.0,2.44374604]
[1673347929258,0.01208014,17274.0,17273.0,2.80473004]
[1673347929510,0.01208014,17274.0,17273.0,2.09753979]
[1673347929511,1.17024788,17274.0,17273.0,2.09753979]
[1673347929733,1.17024788,17274.0,17273.0,1.45498397]
[1673347930005,1.17024788,17274.0,17273.0,1.71463866]
[1673347930275,1.17024788,17274.0,17273.0,1.45498397]
[1673347931031,1.17024788,17274.0,17273.0,1.71463866]
[1673347931297,1.17024788,17274.0,17273.0,1.45498397]
[1673347932255,1.17024788,17274.0,17273.0,1.71463866]
[1673347932518,2.02716431,17274.0,17273.0,0.124]
[1673347932806,3.60372545,17274.0,17273.0,0.124]
[1673347933072,4.24776509,17274.0,17273.0,0.124]
[1673347933321,3.77695542,17274.0,17273.0,0.124]
[1673347933824,4.24813502,17274.0,17273.0,0.124]
[1673347934095,3.77695542,17274.0,17273.0,0.124]
[1673347934348,3.60336895,17274.0,17273.0,0.124]
[1673347937134,3.42970356,17274.0,17273.0,0.124]
[1673347938141,3.60336895,17274.0,17273.0,0.12393693]
[1673347939406,3.77681616,17274.0,17273.0,0.12393693]
[1673347939661,3.75983122,17274.0,17273.0,0.12393693]
[1673347939886,3.75983109,17274.0,17273.0,0.12393693]
[1673347940140,3.41268674,17274.0,17273.0,0.12393693]
[1673347943263,2.70610276,17274.0,17273.0,0.12393693]
[1673347943782,3.1523299,17274.0,17273.0,0.12393693]
[1673347944097,2.70610276,17274.0,17273.0,0.12393693]
[1673347944293,2.7913459,17274.0,17273.0,0.12393693]
[1673347944547,2.70610276,17274.0,17273.0,0.12393693]
[1673347945598,2.34511876,17274.0,17273.0,0.12393693]
[1673347945837,2.70610276,17274.0,17273.0,0.11793693]
[1673347946087,2.70610276,17274.0,17273.0,0.11756544]
[1673347946341,2.17167168,17274.0,17273.0,0.11756544]
[1673347947099,2.70610276,17274.0,17273.0,0.11756544]
[1673347947937,2.34511876,17274.0,17273.0,0.11756544]
[1673347950695,2.70610276,17274.0,17273.0,0.11756544]
[1673347950954,2.52507549,17274.0,17273.0,0.11756544]
[1673347951764,2.16409149,17274.0,17273.0,0.11756544]
[1673347951923,2.52507549,17274.0,17273.0,0.11756544]
[1673347953445,2.16409149,17274.0,17273.0,0.11756544]
[1673347954472,1.99619149,17274.0,17273.0,0.11756544]
[1673347959570,1.82909149,17274.0,17273.0,0.11756544]
[1673347960608,2.08944833,17274.0,17273.0,0.11756544]
[1673347960861,1.82909149,17274.0,17273.0,0.11756544]
[1673347963177,2.08944833,17274.0,17273.0,0.11756544]
[1673347964028,1.82909149,17274.0,17273.0,0.11756544]
[1673347964575,2.08944833,17274.0,17273.0,0.11756544]
[1673347966051,2.11060401,17274.0,17273.0,0.11756544]
[1673347968611,2.47158801,17274.0,17273.0,0.11756544]
[1673347968876,2.11060401,17274.0,17273.0,0.11756544]
[1673347969127,2.28430128,17274.0,17273.0,0.11756544]
[1673347971182,2.64528528,17274.0,17273.0,0.11756544]
[1673347971431,3.07922859,17274.0,17273.0,0.11756544]
[1673347971679,2.81887175,17274.0,17273.0,0.11756544]
[1673347972170,3.29196133,17274.0,17273.0,0.11756544]
[1673347972419,3.0793649,17274.0,17273.0,0.11756544]
[1673347972675,2.64542159,17274.0,17273.0,0.11756544]
[1673347973185,3.29196753,17274.0,17273.0,0.11756544]
[1673347973691,2.81887175,17274.0,17273.0,0.11756544]
[1673347973921,3.29188067,17274.0,17273.0,0.11756544]
[1673347974148,2.81887175,17274.0,17273.0,0.11756544]
[1673347979011,3.29315637,17274.0,17273.0,0.11756544]
[1673347979259,3.73896369,17274.0,17273.0,0.11756544]
[1673347979508,3.29315637,17274.0,17273.0,0.11756544]
[1673347984025,2.64548275,17274.0,17273.0,0.11756544]
[1673347984283,2.28449875,17274.0,17273.0,0.11756544]
[1673347984985,2.71844428,17274.0,17273.0,0.11756544]
[1673347985207,2.28450081,17274.0,17273.0,0.11756544]
[1673347985451,2.45788775,17274.0,17273.0,0.11756544]
[1673347985708,2.71844426,17274.0,17273.0,0.11756544]
[1673347985927,2.45788775,17274.0,17273.0,0.11756544]
[1673347986224,2.28450124,17274.0,17273.0,0.11756544]
[1673347986996,2.11640124,17274.0,17273.0,0.11756544]
[1673347989820,1.94294897,17274.0,17273.0,0.11756544]
[1673347991632,1.94294897,17274.0,17273.0,0.69650344]
[1673347992926,1.68239217,17274.0,17273.0,0.69650344]
[1673347995265,1.94294897,17274.0,17273.0,0.69650344]
[1673348000753,1.68239217,17274.0,17273.0,0.69650344]
[1673348001015,1.94294897,17274.0,17273.0,0.69650344]
[1673348004723,2.11640124,17274.0,17273.0,0.69650344]
[1673348006494,2.29002861,17274.0,17273.0,0.69650344]
[1673348007002,2.11640124,17274.0,17273.0,0.69650344]
[1673348008030,2.29003039,17274.0,17273.0,0.69650344]
[1673348008281,1.94288604,17274.0,17273.0,0.69650344]
[1673348008758,2.29003039,17274.0,17273.0,0.69650344]
[1673348009389,2.11640124,17274.0,17273.0,0.69650344]
[1673348010042,1.94288599,17274.0,17273.0,0.69650344]
[1673348010547,2.29003074,17274.0,17273.0,0.69650344]
[1673348010833,2.11640124,17274.0,17273.0,0.69650344]
[1673348011331,1.94288866,17274.0,17273.0,0.69650344]
[1673348013628,2.29003301,17274.0,17273.0,0.69650344]
[1673348013878,2.11640124,17274.0,17273.0,0.69650344]
[1673348014905,1.94289123,17274.0,17273.0,0.69650344]
[1673348015170,2.29003558,17274.0,17273.0,0.69650344]
[1673348015416,2.11640124,17274.0,17273.0,0.69650344]
[1673348016142,2.29004128,17274.0,17273.0,0.69650344]
[1673348016400,2.11640124,17274.0,17273.0,0.69650344]
[1673348016656,2.11640124,17274.0,17273.0,0.11756544]
[1673348016908,1.94289699,17274.0,17273.0,0.11756544]
[1673348020791,1.16703145,17274.0,17273.0,0.11756544]
[1673348020986,1.16703145,17274.0,17273.0,1.29222816]
[1673348021234,0.99339135,17274.0,17273.0,1.29222816]
[1673348021752,1.16703145,17274.0,17273.0,1.29222816]
[1673348022774,0.99339135,17274.0,17273.0,1.29222816]
[1673348023293,0.99339135,17274.0,17273.0,1.46533613]
[1673348023553,0.99339135,17274.0,17273.0,1.29222816]
[1673348024352,0.99339135,17274.0,17273.0,1.87116616]
[1673348029824,0.02115568,17274.0,17273.0,1.87116616]
[1673348030867,1.17935259,17274.0,17273.0,1.87116616]
[1673348031131,0.02115568,17274.0,17273.0,1.87116616]
[1673348032429,1.17935619,17274.0,17273.0,1.87116616]
[1673348032668,1.1793557,17274.0,17273.0,1.87116616]
[1673348032909,1.3529958,17274.0,17273.0,1.87116616]
[1673348033431,1.74880184,17274.0,17273.0,1.27544144]
[1673348033687,1.92244194,17274.0,17273.0,1.27544144]
[1673348033965,2.18299874,17274.0,17273.0,1.27544144]
[1673348041648,2.18299874,17274.0,17273.0,0.69650344]
[1673348043622,1.92244194,17274.0,17273.0,0.69650344]
[1673348043874,2.18299874,17274.0,17273.0,0.69650344]
[1673348044394,2.18299874,17274.0,17273.0,1.27544144]
[1673348044917,1.92244194,17274.0,17273.0,1.27544144]
[1673348045465,2.18299874,17274.0,17273.0,1.27544144]
[1673348050595,2.53014309,17274.0,17273.0,1.27544144]
[1673348050890,2.35650299,17274.0,17273.0,1.27544144]
[1673348051151,2.53010647,17274.0,17273.0,1.27544144]
[1673348051717,2.35650299,17274.0,17273.0,1.27544144]
[1673348057795,2.35650299,17274.0,17273.0,0.69650344]
[1673348058060,3.02157412,17274.0,17273.0,0.69650344]
[1673348058314,2.35631868,17274.0,17273.0,0.69650344]
[1673348064201,2.71730268,17274.0,17273.0,0.69650344]
[1673348064422,2.35631868,17274.0,17273.0,0.69650344]
[1673348064915,2.71730268,17274.0,17273.0,0.69650344]
[1673348065186,2.35631868,17274.0,17273.0,0.69650344]
[1673348065435,2.71730268,17274.0,17273.0,0.69650344]
[1673348066574,2.35631868,17274.0,17273.0,0.69650344]
[1673348067588,2.79026328,17274.0,17273.0,0.69650344]
[1673348067844,3.15124728,17274.0,17273.0,0.69650344]
[1673348068367,2.35631938,17274.0,17273.0,0.69650344]
[1673348069956,2.5298895,17274.0,17273.0,0.69650344]
[1673348071047,3.0171582,17274.0,17273.0,0.11756544]
[1673348071312,3.3781422,17274.0,17273.0,0.11756544]
[1673348072329,2.8908735,17274.0,17273.0,0.11756544]
[1673348072835,3.37810468,17274.0,17273.0,0.11756544]
[1673348073354,2.8908735,17274.0,17273.0,0.11756544]
[1673348073642,2.35638504,17274.0,17273.0,0.11756544]
[1673348074639,2.35638504,17274.0,17273.0,0.11256544]
[1673348076191,3.15131235,17274.0,17273.0,0.11256544]
[1673348076419,2.71736904,17274.0,17273.0,0.11256544]
[1673348076950,2.35638504,17274.0,17273.0,0.11256544]
[1673348077201,2.71736904,17274.0,17273.0,0.11256544]
[1673348077474,3.15131235,17274.0,17273.0,0.11256544]
[1673348077747,2.8908735,17274.0,17273.0,0.11256544]
[1673348077994,2.5298895,17274.0,17273.0,0.11256544]
[1673348078254,2.79034135,17274.0,17273.0,0.11256544]
[1673348078516,2.35639732,17274.0,17273.0,0.11256544]
[1673348082927,2.5298895,17274.0,17273.0,0.11256544]
[1673348083402,3.01765161,17274.0,17273.0,0.11256544]